fUSD/lending_fUSD_20240630
["ID","MTS","AMOUNT","RATE_DAILY","PERIOD"]
[330700431,1719715872639,-500.0,0.00014575,3]
[330700432,1719715872648,-523.74,0.00014575,3]
[330700433,1719715872658,-624.5,0.00014575,3]
[330700434,1719715872667,-500.0,0.00014575,3]
[330700435,1719715872676,-500.0,0.00014575,3]
[330700436,1719715872686,-3175.52,0.00014575,3]
[330700437,1719715872696,-500.0,0.00014575,3]
[330700438,1719715872705,-500.0,0.00014575,3]
[330700439,1719715872715,-987.08,0.00014575,3]
[330700440,1719715872725,-500.0,0.00014575,3]
[330700441,1719715872735,-500.0,0.00014575,3]
[330700442,1719715872747,-500.0,0.00014575,3]
[330700443,1719715872756,-1368.96,0.00014575,3]
[330700444,1719715872768,-500.0,0.00014575,3]
[330700445,1719715872777,-500.0,0.00014575,3]
[330700446,1719715872787,-1311.38,0.00014575,3]
[330700447,1719715872796,-907.53,0.00014575,3]
[330700448,1719715872805,-500.0,0.00014575,3]
[330700449,1719715872815,-500.0,0.00014575,3]
[330700450,1719715872824,-507.05,0.00014575,3]
[330700451,1719715872836,-1080.55,0.00014575,3]
[330700452,1719715872845,-1968.8,0.00014575,3]
[330700453,1719715872855,-1471.1,0.00014575,3]
[330700454,1719715872864,-1161.94,0.00014575,3]
[330700455,1719715872873,-500.0,0.00014575,3]
[330700456,1719715872883,-654.89,0.00014575,3]
[330700457,1719715872892,-500.0,0.00014575,3]
[330700458,1719715872901,-500.0,0.00014575,3]
[330700459,1719715872911,-500.0,0.00014575,3]
[330700460,1719715872920,-864.95,0.00014575,3]
[330700461,1719715872930,-500.0,0.00014575,3]
[330700462,1719715872939,-1106.72,0.00014575,3]
[330700463,1719715872948,-906.17,0.00014575,3]
[330700464,1719715872958,-500.0,0.00014575,3]
[330700465,1719715872967,-558.57,0.00014575,3]
[330700466,1719715872977,-200.0,0.00014584,2]
[330700467,1719715872987,-1100.0,0.000146,2]
[330700468,1719715872996,-250.0,0.00014639,2]
[330700469,1719715873005,-500.0,0.00014682,2]
[330700470,1719715873015,-500.0,0.00014683,3]
[330700471,1719715873024,-500.0,0.00014683,3]
[330700472,1719715873034,-664.54,0.00014683,3]
[330700473,1719715873044,-699.83,0.00014683,3]
[330700474,1719715873058,-1202.0,0.00014683,3]
[330700475,1719715873068,-522.36,0.00014683,3]
[330700476,1719715873078,-587.33,0.00014684,3]
[330700477,1719715873088,-730.63,0.00014684,3]
[330700478,1719715873098,-937.17,0.00014684,3]
[330700479,1719715873108,-2172.53,0.00014684,3]
[330700480,1719715873117,-8098.74,0.00014684,3]
[330700481,1719715873127,-500.0,0.00014684,3]
[330700482,1719715873137,-1705.68,0.00014684,3]
[330700483,1719715873146,-621.2,0.00014684,3]
[330700484,1719715873156,-786.94,0.00014684,3]
[330700485,1719715873166,-500.0,0.00014684,3]
[330700486,1719715873175,-575.12,0.00014684,3]
[330700487,1719715873185,-633.74,0.00014684,3]
[330700488,1719715873194,-500.0,0.00014684,3]
[330700489,1719715873203,-500.0,0.00014684,3]
[330700490,1719715873212,-500.0,0.00014684,3]
[330700491,1719715873222,-1034.52,0.00014684,3]
[330700492,1719715873231,-768.2,0.00014684,3]
[330700493,1719715873240,-614.71,0.00014684,3]
[330700494,1719715873249,-500.0,0.00014684,3]
[330700495,1719715873259,-500.0,0.00014684,3]
[330700496,1719715873268,-500.0,0.00014684,3]
[330700497,1719715873278,-500.0,0.00014684,3]
[330700498,1719715873287,-731.6,0.00014684,3]
[330700499,1719715873296,-500.0,0.00014684,3]
[330700500,1719715873305,-500.0,0.00014684,3]
[330700501,1719715873314,-500.0,0.00014684,3]
[330700502,1719715873323,-560.3,0.00014684,3]
[330700503,1719715873334,-500.0,0.00014684,3]
[330700504,1719715873343,-500.0,0.00014684,3]
[330700505,1719715873352,-500.0,0.00014684,3]
[330700506,1719715873362,-500.0,0.00014684,3]
[330700507,1719715873371,-488.40031795,0.00014684,3]
[330700508,1719715873380,-500.0,0.00014684,3]
[330700509,1719715873389,-670.04,0.00014684,3]
[330700510,1719715873399,-500.0,0.00014684,3]
[330700511,1719715873408,-500.0,0.00014684,3]
[330700512,1719715873419,-500.0,0.00014684,3]
[330700513,1719715873428,-1084.67,0.00014684,3]
[330700514,1719715873437,-670.53,0.00014684,3]
[330700515,1719715873447,-1047.34,0.00014684,3]
[330700516,1719715873456,-688.83,0.00014684,3]
[330700517,1719715873629,-500.0,0.00014684,3]
[330700518,1719715873648,-874.39,0.00014684,3]
[330700519,1719715873659,-447.77819127,0.00014684,3]
[330700520,1719715873668,-500.0,0.00014684,3]
[330700521,1719715873677,-989.37,0.00014684,3]
[330700522,1719715873686,-500.0,0.00014684,3]
[330700523,1719715873695,-500.0,0.00014684,3]
[330700524,1719715873705,-500.0,0.00014684,3]
[330700525,1719715873714,-500.0,0.00014684,3]
[330700526,1719715873723,-500.0,0.00014684,3]
[330700527,1719715873733,-639.49,0.00014684,3]
[330700528,1719715873742,-500.0,0.00014684,3]
[330700529,1719715873751,-749.55,0.00014684,3]
[330700530,1719715873760,-500.0,0.00014684,3]
[330700531,1719715873769,-500.0,0.00014684,3]
[330700532,1719715873778,-1660.26,0.00014684,3]
[330700533,1719715873787,-500.0,0.00014684,3]
[330700534,1719715873797,-500.0,0.00014684,3]
[330700535,1719715873806,-500.0,0.00014684,3]
[330700536,1719715873815,-500.0,0.00014684,3]
[330700537,1719715873824,-500.0,0.00014684,3]
[330700538,1719715873835,-500.0,0.00014684,3]
[330700539,1719715873844,-500.0,0.00014684,3]
[330700540,1719715873854,-381.7518087,0.00014684,3]
[330700541,1719715873863,-500.0,0.00014684,3]
[330700542,1719715873872,-500.0,0.00014684,3]
[330700543,1719715873882,-500.0,0.00014684,3]
[330700544,1719715873891,-609.86,0.00014684,3]
[330700545,1719715873900,-575.37,0.00014684,3]
[330700546,1719715873910,-525.93,0.00014684,3]
[330700547,1719715873919,-643.34121632,0.00014684,3]
[330700548,1719715873929,-500.0,0.00014684,3]
[330700549,1719715873939,-583.75388651,0.00014684,3]
[330700550,1719715873950,-1032.93,0.00014684,3]
[330700551,1719715873959,-500.0,0.00014684,3]
[330700552,1719715873969,-500.0,0.00014684,3]
[330700553,1719715873979,-500.0,0.00014684,3]
[330700554,1719715873990,-500.0,0.00014684,3]
[330700555,1719715874000,-500.0,0.00014684,3]
[330700556,1719715874010,-500.0,0.00014684,3]
[330700557,1719715874019,-479.88184589,0.00014684,3]
[330700558,1719715874029,-500.0,0.00014684,3]
[330700559,1719715874039,-203.97581669,0.00014684,3]
[330700560,1719715874052,-320.47784555,0.00014684,3]
[330700561,1719715874062,-500.0,0.00014684,3]
[330700562,1719715874072,-500.0,0.00014684,3]
[330700563,1719715874083,-475.04595387,0.00014684,3]
[330700564,1719715874092,-503.73,0.00014684,3]
[330700565,1719715874102,-907.61,0.00014684,3]
[330700566,1719715874113,-500.0,0.00014684,3]
[330700567,1719715874123,-237.20557464,0.00014684,3]
[330700568,1719715874136,-500.0,0.00014684,3]
[330700569,1719715874147,-500.0,0.00014684,3]
[330700570,1719715874157,-500.0,0.00014684,3]
[330700571,1719715874166,-500.0,0.00014684,3]
[330700572,1719715874176,-919.71,0.00014684,3]
[330700573,1719715874186,-609.42,0.00014684,3]
[330700574,1719715874195,-500.0,0.00014684,3]
[330700575,1719715874204,-561.12,0.00014684,3]
[330700576,1719715874214,-500.0,0.00014684,3]
[330700577,1719715874223,-500.0,0.00014684,3]
[330700578,1719715874233,-500.0,0.00014684,3]
[330700579,1719715874242,-500.0,0.00014684,3]
[330700580,1719715874251,-500.0,0.00014684,3]
[330700581,1719715874261,-500.0,0.00014684,3]
[330700582,1719715874270,-500.0,0.00014684,3]
[330700583,1719715874280,-500.0,0.00014684,3]
[330700584,1719715874290,-155.73,0.00014684,3]
[330700585,1719715874299,-500.0,0.00014684,3]
[330700586,1719715874309,-500.0,0.00014684,3]
[330700587,1719715874319,-500.0,0.00014684,3]
[330700588,1719715874328,-648.03,0.00014684,3]
[330700589,1719715874341,-524.56,0.00014684,3]
[330700590,1719715874352,-500.0,0.00014684,3]
[330700591,1719715874361,-500.0,0.00014684,3]
[330700592,1719715874373,-500.0,0.00014684,3]
[330700593,1719715874383,-500.0,0.00014684,3]
[330700594,1719715874393,-500.0,0.00014684,3]
[330700595,1719715874403,-500.0,0.00014684,3]
[330700596,1719715874412,-665.61,0.00014684,3]
[330700597,1719715874421,-500.0,0.00014684,3]
[330700598,1719715874431,-595.24,0.00014684,3]
[330700599,1719715874440,-500.0,0.00014684,3]
[330700600,1719715874450,-500.0,0.00014684,3]
[330700601,1719715874460,-500.0,0.00014684,3]
[330700602,1719715874470,-500.0,0.00014684,3]
[330700603,1719715874479,-500.0,0.00014684,3]
[330700604,1719715874488,-500.0,0.00014684,3]
[330700605,1719715874498,-500.0,0.00014684,3]
[330700606,1719715874507,-535.24,0.00014684,3]
[330700607,1719715874517,-1707.57,0.00014684,3]
[330700608,1719715874527,-500.0,0.00014684,3]
[330700609,1719715874536,-500.0,0.00014684,3]
[330700610,1719715874546,-500.0,0.00014684,3]
[330700611,1719715874555,-500.0,0.00014684,3]
[330700612,1719715874564,-1194.29,0.00014684,3]
[330700613,1719715874574,-500.0,0.00014684,3]
[330700614,1719715874585,-500.0,0.00014684,3]
[330700615,1719715874594,-862.38,0.00014684,3]
[330700616,1719715874604,-500.0,0.00014684,3]
[330700617,1719715874614,-500.0,0.00014684,3]
[330700618,1719715874623,-775.65,0.00014684,3]
[330700619,1719715874634,-500.0,0.00014684,3]
[330700620,1719715874644,-2017.06,0.00014684,3]
[330700621,1719715874653,-500.0,0.00014684,3]
[330700622,1719715874663,-500.0,0.00014684,3]
[330700623,1719715874673,-500.0,0.00014684,3]
[330700624,1719715874683,-500.0,0.00014684,3]
[330700625,1719715874693,-1155.28,0.00014684,3]
[330700626,1719715874703,-500.0,0.00014684,3]
[330700627,1719715874712,-500.0,0.00014684,3]
[330700628,1719715874722,-3847.3,0.00014684,3]
[330700629,1719715874732,-500.0,0.00014684,3]
[330700630,1719715874742,-501.09,0.00014684,3]
[330700631,1719715874751,-581.33,0.00014684,3]
[330700632,1719715874762,-670.12,0.00014684,3]
[330700633,1719715874772,-1981.14,0.00014684,3]
[330700634,1719715874781,-561.32,0.00014684,3]
[330700635,1719715874791,-396.24918252,0.00014684,3]
[330700636,1719715874800,-1322.8,0.00014684,3]
[330700637,1719715874809,-500.0,0.00014684,3]
[330700638,1719715874820,-757.5,0.00014684,3]
[330700639,1719715874830,-500.0,0.00014684,3]
[330700640,1719715874840,-579.95,0.00014684,3]
[330700641,1719715874849,-1006.07,0.00014684,3]
[330700642,1719715874859,-500.0,0.00014684,3]
[330700643,1719715874869,-500.0,0.00014684,3]
[330700644,1719715874879,-500.0,0.00014684,3]
[330700645,1719715874888,-500.0,0.00014684,3]
[330700646,1719715874899,-500.0,0.00014684,3]
[330700647,1719715874910,-500.0,0.00014684,3]
[330700648,1719715874920,-633.84,0.00014684,3]
[330700649,1719715874931,-1341.8,0.00014684,3]
[330700650,1719715874942,-500.0,0.00014684,3]
[330700651,1719715874952,-1187.56,0.00014684,3]
[330700652,1719715874962,-500.0,0.00014684,3]
[330700653,1719715874971,-500.0,0.00014684,3]
[330700654,1719715874980,-500.0,0.00014684,3]
[330700655,1719715874990,-424.19607923,0.00014684,3]
[330700656,1719715875000,-579.77,0.00014684,3]
[330700657,1719715875010,-552.84,0.00014684,3]
[330700658,1719715875019,-603.84,0.00014684,3]
[330700659,1719715875028,-500.0,0.00014684,3]
[330700660,1719715875037,-500.0,0.00014684,3]
[330700661,1719715875050,-500.0,0.00014684,3]
[330700662,1719715875060,-500.0,0.00014684,3]
[330700663,1719715875069,-965.88,0.00014684,3]
[330700664,1719715875078,-500.0,0.00014684,3]
[330700665,1719715875089,-698.45,0.00014684,3]
[330700666,1719715875099,-642.26,0.00014684,3]
[330700667,1719715875108,-516.27,0.00014684,3]
[330700668,1719715875118,-500.0,0.00014684,3]
[330700669,1719715875131,-500.0,0.00014684,3]
[330700670,1719715875142,-675.86,0.00014684,3]
[330700671,1719715875151,-892.41,0.00014684,3]
[330700672,1719715875160,-708.05,0.00014684,3]
[330700673,1719715875170,-763.84,0.00014684,3]
[330700674,1719715875180,-713.73,0.00014684,3]
[330700675,1719715875190,-296.79736575,0.00014684,3]
[330700676,1719715875200,-523.74,0.00014684,3]
[330700677,1719715875210,-624.5,0.00014684,3]
[330700678,1719715875220,-500.0,0.00014684,3]
[330700679,1719715875230,-500.0,0.00014684,3]
[330700680,1719715875240,-3175.52,0.00014684,3]
[330700681,1719715875250,-500.0,0.00014684,3]
[330700682,1719715875259,-500.0,0.00014684,3]
[330700683,1719715875269,-500.0,0.00014684,3]
[330700684,1719715875278,-500.0,0.00014684,3]
[330700685,1719715875288,-987.08,0.00014684,3]
[330700686,1719715875298,-500.0,0.00014684,3]
[330700687,1719715875309,-1368.96,0.00014684,3]
[330700688,1719715875319,-500.0,0.00014684,3]
[330700689,1719715875329,-500.0,0.00014684,3]
[330700690,1719715875340,-1311.38,0.00014684,3]
[330700691,1719715875349,-907.53,0.00014684,3]
[330700692,1719715875359,-500.0,0.00014684,3]
[330700693,1719715875369,-500.0,0.00014684,3]
[330700694,1719715875379,-507.05,0.00014684,3]
[330700695,1719715875389,-1080.55,0.00014684,3]
[330700696,1719715875398,-1968.8,0.00014684,3]
[330700697,1719715875407,-1471.1,0.00014684,3]
[330700698,1719715875417,-1161.94,0.00014684,3]
[330700699,1719715875426,-500.0,0.00014684,3]
[330700700,1719715875436,-654.89,0.00014684,3]
[330700701,1719715875445,-574.07999198,0.00014684,3]
[330700702,1719715875455,-500.0,0.00014684,3]
[330700703,1719715875464,-500.0,0.00014684,3]
[330700704,1719715875474,-864.95,0.00014684,3]
[330700705,1719715875483,-500.0,0.00014684,3]
[330700706,1719715875493,-1106.72,0.00014684,3]
[330700707,1719715875502,-906.17,0.00014684,3]
[330700708,1719715875512,-500.0,0.00014684,3]
[330700709,1719715875521,-558.57,0.00014684,3]
[330700710,1719715875531,-250.0,0.00014694,2]
[330700711,1719715875540,-1000.0,0.000147,2]
[330700712,1719715875550,-389.7463714,0.00014784,2]
[330700713,1719715875560,-500.0,0.00014793,2]
[330700714,1719715875569,-500.0,0.00014793,3]
[330700715,1719715875579,-500.0,0.00014793,3]
[330700716,1719715875591,-664.54,0.00014793,3]
[330700717,1719715875602,-699.83,0.00014793,3]
[330700718,1719715875611,-1202.0,0.00014793,3]
[330700719,1719715875623,-522.36,0.00014793,3]
[330700720,1719715875634,-587.33,0.00014794,3]
[330700721,1719715875644,-730.63,0.00014794,3]
[330700722,1719715875654,-937.17,0.00014794,3]
[330700723,1719715875663,-2172.53,0.00014794,3]
[330700724,1719715875673,-8098.74,0.00014794,3]
[330700725,1719715875683,-500.0,0.00014794,3]
[330700726,1719715875692,-1705.68,0.00014794,3]
[330700727,1719715875702,-621.2,0.00014794,3]
[330700728,1719715875712,-786.94,0.00014794,3]
[330700729,1719715875722,-500.0,0.00014794,3]
[330700730,1719715875731,-575.12,0.00014794,3]
[330700731,1719715875741,-633.74,0.00014794,3]
[330700732,1719715875751,-500.0,0.00014794,3]
[330700733,1719715875760,-500.0,0.00014794,3]
[330700734,1719715875770,-500.0,0.00014794,3]
[330700735,1719715875780,-1034.52,0.00014794,3]
[330700736,1719715875789,-768.2,0.00014794,3]
[330700737,1719715875799,-614.71,0.00014794,3]
[330700738,1719715875808,-500.0,0.00014794,3]
[330700739,1719715875818,-500.0,0.00014794,3]
[330700740,1719715875828,-340.33259763,0.00014794,3]
[330700741,1719715875840,-500.0,0.00014794,3]
[330700742,1719715875850,-731.6,0.00014794,3]
[330700743,1719715875859,-500.0,0.00014794,3]
[330700744,1719715875869,-500.0,0.00014794,3]
[330700745,1719715875878,-500.0,0.00014794,3]
[330700746,1719715875888,-560.3,0.00014794,3]
[330700747,1719715875898,-500.0,0.00014794,3]
[330700748,1719715875907,-302.02,0.00014794,3]
[330700749,1719715875917,-500.0,0.00014794,3]
[330700750,1719715875927,-500.0,0.00014794,3]
[330700751,1719715875936,-500.0,0.00014794,3]
[330700752,1719715875946,-670.04,0.00014794,3]
[330700753,1719715875956,-500.0,0.00014794,3]
[330700754,1719715875965,-500.0,0.00014794,3]
[330700755,1719715875975,-500.0,0.00014794,3]
[330700756,1719715875984,-1084.67,0.00014794,3]
[330700757,1719715875994,-670.53,0.00014794,3]
[330700758,1719715876003,-688.83,0.00014794,3]
[330700759,1719715876012,-1047.34,0.00014794,3]
[330700760,1719715876022,-500.0,0.00014794,3]
[330700761,1719715876031,-874.39,0.00014794,3]
[330700762,1719715876041,-500.0,0.00014794,3]
[330700763,1719715876054,-500.0,0.00014794,3]
[330700764,1719715876064,-989.37,0.00014794,3]
[330700765,1719715876073,-500.0,0.00014794,3]
[330700766,1719715876086,-500.0,0.00014794,3]
[330700767,1719715876096,-500.0,0.00014794,3]
[330700768,1719715876107,-500.0,0.00014794,3]
[330700769,1719715876116,-639.49,0.00014794,3]
[330700770,1719715876126,-500.0,0.00014794,3]
[330700771,1719715876192,-749.55,0.00014794,3]
[330700772,1719715876202,-500.0,0.00014794,3]
[330700773,1719715876211,-500.0,0.00014794,3]
[330700774,1719715876221,-500.0,0.00014794,3]
[330700775,1719715876230,-1660.26,0.00014794,3]
[330700776,1719715876239,-500.0,0.00014794,3]
[330700777,1719715876248,-500.0,0.00014794,3]
[330700778,1719715876257,-500.0,0.00014794,3]
[330700779,1719715876267,-500.0,0.00014794,3]
[330700780,1719715876276,-500.0,0.00014794,3]
[330700781,1719715876285,-468.28412571,0.00014794,3]
[330700782,1719715876295,-500.0,0.00014794,3]
[330700783,1719715876304,-500.0,0.00014794,3]
[330700784,1719715876313,-500.0,0.00014794,3]
[330700785,1719715876322,-609.86,0.00014794,3]
[330700786,1719715876333,-575.37,0.00014794,3]
[330700787,1719715876342,-525.93,0.00014794,3]
[330700788,1719715876352,-500.0,0.00014794,3]
[330700789,1719715876364,-1032.93,0.00014794,3]
[330700790,1719715876375,-500.0,0.00014794,3]
[330700791,1719715876384,-500.0,0.00014794,3]
[330700792,1719715876393,-500.0,0.00014794,3]
[330700793,1719715876402,-500.0,0.00014794,3]
[330700794,1719715876411,-500.0,0.00014794,3]
[330700795,1719715876420,-500.0,0.00014794,3]
[330700796,1719715876430,-500.0,0.00014794,3]
[330700797,1719715876439,-500.0,0.00014794,3]
[330700798,1719715876449,-500.0,0.00014794,3]
[330700799,1719715876458,-503.73,0.00014794,3]
[330700800,1719715876467,-500.0,0.00014794,3]
[330700801,1719715876476,-907.61,0.00014794,3]
[330700802,1719715876486,-500.0,0.00014794,3]
[330700803,1719715876495,-500.0,0.00014794,3]
[330700804,1719715876504,-500.0,0.00014794,3]
[330700805,1719715876513,-500.0,0.00014794,3]
[330700806,1719715876523,-919.71,0.00014794,3]
[330700807,1719715876532,-609.42,0.00014794,3]
[330700808,1719715876541,-500.0,0.00014794,3]
[330700809,1719715876551,-561.12,0.00014794,3]
[330700810,1719715876560,-500.0,0.00014794,3]
[330700811,1719715876569,-500.0,0.00014794,3]
[330700812,1719715876579,-159.82670652,0.00014794,3]
[330700813,1719715876589,-500.0,0.00014794,3]
[330700814,1719715876599,-500.0,0.00014794,3]
[330700815,1719715876608,-500.0,0.00014794,3]
[330700816,1719715876618,-500.0,0.00014794,3]
[330700817,1719715876627,-500.0,0.00014794,3]
[330700818,1719715876637,-155.73,0.00014794,3]
[330700819,1719715876646,-500.0,0.00014794,3]
[330700820,1719715876656,-500.0,0.00014794,3]
[330700821,1719715876665,-500.0,0.00014794,3]
[330700822,1719715876675,-648.03,0.00014794,3]
[330700823,1719715876684,-524.56,0.00014794,3]
[330700824,1719715876694,-500.0,0.00014794,3]
[330700825,1719715876703,-500.0,0.00014794,3]
[330700826,1719715876713,-500.0,0.00014794,3]
[330700827,1719715876722,-500.0,0.00014794,3]
[330700828,1719715876731,-500.0,0.00014794,3]
[330700829,1719715876741,-500.0,0.00014794,3]
[330700830,1719715876750,-665.61,0.00014794,3]
[330700831,1719715876760,-500.0,0.00014794,3]
[330700832,1719715876769,-595.24,0.00014794,3]
[330700833,1719715876778,-500.0,0.00014794,3]
[330700834,1719715876787,-500.0,0.00014794,3]
[330700835,1719715876798,-500.0,0.00014794,3]
[330700836,1719715876809,-500.0,0.00014794,3]
[330700837,1719715876818,-500.0,0.00014794,3]
[330700838,1719715876827,-500.0,0.00014794,3]
[330700839,1719715876839,-500.0,0.00014794,3]
[330700840,1719715876849,-535.24,0.00014794,3]
[330700841,1719715876859,-1707.57,0.00014794,3]
[330700842,1719715876869,-500.0,0.00014794,3]
[330700843,1719715876878,-500.0,0.00014794,3]
[330700844,1719715876888,-500.0,0.00014794,3]
[330700845,1719715876898,-500.0,0.00014794,3]
[330700846,1719715876909,-1194.29,0.00014794,3]
[330700847,1719715876918,-500.0,0.00014794,3]
[330700848,1719715876928,-500.0,0.00014794,3]
[330700849,1719715876937,-862.38,0.00014794,3]
[330700850,1719715876947,-500.0,0.00014794,3]
[330700851,1719715876957,-500.0,0.00014794,3]
[330700852,1719715876966,-775.65,0.00014794,3]
[330700853,1719715876977,-500.0,0.00014794,3]
[330700854,1719715876986,-2017.06,0.00014794,3]
[330700855,1719715876996,-500.0,0.00014794,3]
[330700856,1719715877006,-500.0,0.00014794,3]
[330700857,1719715877015,-500.0,0.00014794,3]
[330700858,1719715877024,-500.0,0.00014794,3]
[330700859,1719715877034,-1155.28,0.00014794,3]
[330700860,1719715877046,-500.0,0.00014794,3]
[330700861,1719715877057,-500.0,0.00014794,3]
[330700862,1719715877066,-3847.3,0.00014794,3]
[330700863,1719715877076,-500.0,0.00014794,3]
[330700864,1719715877087,-501.09,0.00014794,3]
[330700865,1719715877096,-670.12,0.00014794,3]
[330700866,1719715877105,-1981.14,0.00014794,3]
[330700867,1719715877115,-561.32,0.00014794,3]
[330700868,1719715877124,-1322.8,0.00014794,3]
[330700869,1719715877134,-500.0,0.00014794,3]
[330700870,1719715877144,-757.5,0.00014794,3]
[330700871,1719715877154,-500.0,0.00014794,3]
[330700872,1719715877163,-579.95,0.00014794,3]
[330700873,1719715877173,-1006.07,0.00014794,3]
[330700874,1719715877183,-500.0,0.00014794,3]
[330700875,1719715877192,-206.62417661,0.00014794,3]
[330700876,1719715877202,-500.0,0.00014794,3]
[330700877,1719715877211,-500.0,0.00014794,3]
[330700878,1719715877221,-500.0,0.00014794,3]
[330700879,1719715877231,-500.0,0.00014794,3]
[330700880,1719715877241,-633.84,0.00014794,3]
[330700881,1719715877251,-1341.8,0.00014794,3]
[330700882,1719715877260,-500.0,0.00014794,3]
[330700883,1719715877269,-1187.56,0.00014794,3]
[330700884,1719715877279,-500.0,0.00014794,3]
[330700885,1719715877289,-500.0,0.00014794,3]
[330700886,1719715877299,-500.0,0.00014794,3]
[330700887,1719715877309,-579.77,0.00014794,3]
[330700888,1719715877319,-552.84,0.00014794,3]
[330700889,1719715877328,-603.84,0.00014794,3]
[330700890,1719715877340,-500.0,0.00014794,3]
[330700891,1719715877349,-500.0,0.00014794,3]
[330700892,1719715877359,-191.81860783,0.00014794,3]
[330700893,1719715877368,-500.0,0.00014794,3]
[330700894,1719715877379,-965.88,0.00014794,3]
[330700895,1719715877388,-500.0,0.00014794,3]
[330700896,1719715877397,-698.45,0.00014794,3]
[330700897,1719715877407,-642.26,0.00014794,3]
[330700898,1719715877416,-516.27,0.00014794,3]
[330700899,1719715877426,-500.0,0.00014794,3]
[330700900,1719715877435,-500.0,0.00014794,3]
[330700901,1719715877444,-675.86,0.00014794,3]
[330700902,1719715877453,-892.41,0.00014794,3]
[330700903,1719715877462,-708.05,0.00014794,3]
[330700904,1719715877471,-763.84,0.00014794,3]
[330700905,1719715877480,-713.73,0.00014794,3]
[330700906,1719715877489,-523.74,0.00014794,3]
[330700907,1719715877498,-624.5,0.00014794,3]
[330700908,1719715877507,-500.0,0.00014794,3]
[330700909,1719715877516,-500.0,0.00014794,3]
[330700910,1719715877525,-3175.52,0.00014794,3]
[330700911,1719715877535,-500.0,0.00014794,3]
[330700912,1719715877544,-500.0,0.00014794,3]
[330700913,1719715877552,-500.0,0.00014794,3]
[330700914,1719715877562,-500.0,0.00014794,3]
[330700915,1719715877571,-987.08,0.00014794,3]
[330700916,1719715877580,-500.0,0.00014794,3]
[330700917,1719715877591,-1368.96,0.00014794,3]
[330700918,1719715877600,-500.0,0.00014794,3]
[330700919,1719715877609,-500.0,0.00014794,3]
[330700920,1719715877619,-1311.38,0.00014794,3]
[330700921,1719715877630,-907.53,0.00014794,3]
[330700922,1719715877640,-500.0,0.00014794,3]
[330700923,1719715877649,-500.0,0.00014794,3]
[330700924,1719715877659,-507.05,0.00014794,3]
[330700925,1719715877668,-1080.55,0.00014794,3]
[330700926,1719715877677,-1968.8,0.00014794,3]
[330700927,1719715877686,-1471.1,0.00014794,3]
[330700928,1719715877695,-1161.94,0.00014794,3]
[330700929,1719715877704,-500.0,0.00014794,3]
[330700930,1719715877713,-654.89,0.00014794,3]